fUSD/lending_fUSD_20240826
["ID","MTS","AMOUNT","RATE_DAILY","PERIOD"]
[335950715,1724638254086,-500.0,0.00010999,2]
[335950716,1724638254095,-500.0,0.00010999,2]
[335950717,1724638254104,-437.15218959,0.00010999,2]
[335950718,1724638254113,-151.0,0.00010999,2]
[335950719,1724638254122,-151.0,0.00010999,2]
[335950720,1724638254131,-151.0,0.00010999,2]
[335950721,1724638254140,-151.0,0.00010999,2]
[335950722,1724638254149,-151.0,0.00010999,2]
[335950723,1724638254158,-151.0,0.00010999,2]
[335950724,1724638254167,-151.0,0.00010999,2]
[335950725,1724638254179,-151.0,0.00010999,2]
[335950726,1724638254187,-151.0,0.00010999,2]
[335950727,1724638254197,-500.0,0.00010999,2]
[335950728,1724638254206,-500.0,0.00010999,2]
[335950729,1724638254215,-500.0,0.00010999,2]
[335950730,1724638254224,-500.0,0.00010999,2]
[335950731,1724638254233,-500.0,0.00010999,2]
[335950732,1724638254242,-500.0,0.00010999,2]
[335950733,1724638254251,-500.0,0.00010999,2]
[335950734,1724638254260,-500.0,0.00010999,2]
[335950735,1724638254269,-500.0,0.00010999,2]
[335950736,1724638254279,-509.94617407,0.00010999,2]
[335950737,1724638254287,-500.0,0.00010999,2]
[335950738,1724638254296,-500.0,0.00010999,2]
[335950739,1724638254306,-500.0,0.00010999,2]
[335950740,1724638254315,-500.0,0.00010999,2]
[335950741,1724638254324,-500.0,0.00010999,2]
[335950742,1724638254334,-319.65041127,0.00010999,2]
[335950743,1724638254344,-500.0,0.00010999,2]
[335950744,1724638254352,-500.0,0.00010999,2]
[335950745,1724638254362,-500.0,0.00010999,2]
[335950746,1724638254371,-500.0,0.00010999,2]
[335950747,1724638254380,-500.0,0.00010999,2]
[335950748,1724638254390,-500.0,0.00010999,2]
[335950749,1724638254399,-500.0,0.00010999,2]
[335950750,1724638254408,-500.0,0.00010999,2]
[335950751,1724638254418,-500.0,0.00010999,2]
[335950752,1724638254431,-500.0,0.00010999,2]
[335950753,1724638254440,-532.54010167,0.00010999,2]
[335950754,1724638254449,-151.0,0.00010999,2]
[335950755,1724638254458,-500.0,0.00010999,2]
[335950756,1724638254467,-500.0,0.00010999,2]
[335950757,1724638254477,-500.0,0.00010999,2]
[335950758,1724638254486,-500.0,0.00010999,2]
[335950759,1724638254495,-432.63,0.00010999,2]
[335950760,1724638254504,-151.0,0.00010999,2]
[335950761,1724638254513,-151.0,0.00010999,2]
[335950762,1724638254523,-151.574129,0.00010999,2]
[335950763,1724638254532,-500.0,0.00010999,2]
[335950764,1724638254541,-500.0,0.00010999,2]
[335950765,1724638254551,-500.0,0.00010999,2]
[335950766,1724638254559,-305.59700383,0.00010999,2]
[335950767,1724638254568,-151.0,0.00010999,2]
[335950768,1724638254578,-151.0,0.00010999,2]
[335950769,1724638254586,-151.855028,0.00010999,2]
[335950770,1724638254596,-152.295233,0.00010999,2]
[335950771,1724638254605,-151.0,0.00010999,2]
[335950772,1724638254614,-151.0,0.00010999,2]
[335950773,1724638254623,-152.753401,0.00010999,2]
[335950774,1724638254632,-500.0,0.00010999,2]
[335950775,1724638254641,-500.0,0.00010999,2]
[335950776,1724638254650,-225.89097667,0.00010999,2]
[335950777,1724638254659,-500.0,0.00010999,2]
[335950778,1724638254668,-500.0,0.00010999,2]
[335950779,1724638254679,-500.0,0.00010999,2]
[335950780,1724638254689,-500.0,0.00010999,2]
[335950781,1724638254698,-500.0,0.00010999,2]
[335950782,1724638254707,-364.94695256,0.00010999,2]
[335950783,1724638254716,-571.14,0.00010999,2]
[335950784,1724638254725,-571.14,0.00010999,2]
[335950785,1724638254734,-571.14,0.00010999,2]
[335950786,1724638254744,-571.14,0.00010999,2]
[335950787,1724638254753,-571.14,0.00010999,2]
[335950788,1724638254763,-571.14,0.00010999,2]
[335950789,1724638254772,-571.14,0.00010999,2]
[335950790,1724638254781,-571.14,0.00010999,2]
[335950791,1724638254790,-571.14,0.00010999,2]
[335950792,1724638254799,-571.14,0.00010999,2]
[335950793,1724638254808,-571.14,0.00010999,2]
[335950794,1724638254817,-571.14,0.00010999,2]
[335950795,1724638254826,-571.15947054,0.00010999,2]
[335950796,1724638254835,-510.53693855,0.00010999,2]
[335950797,1724638254845,-385.148087,0.00010999,2]
[335950798,1724638254855,-581.3,0.00010999,2]
[335950799,1724638254864,-581.3,0.00010999,2]
[335950800,1724638254873,-581.3,0.00010999,2]
[335950801,1724638254883,-581.3,0.00010999,2]
[335950802,1724638254895,-581.3,0.00010999,2]
[335950803,1724638254904,-581.3,0.00010999,2]
[335950804,1724638254913,-581.3,0.00010999,2]
[335950805,1724638254923,-581.3,0.00010999,2]
[335950806,1724638254933,-581.3,0.00010999,2]
[335950807,1724638254943,-581.3,0.00010999,2]
[335950808,1724638254952,-581.3,0.00010999,2]
[335950809,1724638254963,-581.3,0.00010999,2]
[335950810,1724638254973,-581.39982725,0.00010999,2]
[335950811,1724638254982,-500.0,0.00010999,2]
[335950812,1724638254991,-500.0,0.00010999,2]
[335950813,1724638255000,-500.0,0.00010999,2]
[335950814,1724638255009,-500.0,0.00010999,2]
[335950815,1724638255019,-500.0,0.00010999,2]
[335950816,1724638255028,-500.0,0.00010999,2]
[335950817,1724638255037,-151.0,0.00010999,2]
[335950818,1724638255046,-500.0,0.00010999,2]
[335950819,1724638255055,-500.0,0.00010999,2]
[335950820,1724638255064,-151.0,0.00010999,2]
[335950821,1724638255073,-393.69613083,0.00010999,2]
[335950822,1724638255083,-268.521431,0.00010999,2]
[335950823,1724638255092,-500.0,0.00010999,2]
[335950824,1724638255101,-500.0,0.00010999,2]
[335950825,1724638255110,-500.0,0.00010999,2]
[335950826,1724638255119,-500.0,0.00010999,2]
[335950827,1724638255128,-500.0,0.00010999,2]
[335950828,1724638255137,-500.0,0.00010999,2]
[335950829,1724638255147,-500.0,0.00010999,2]
[335950830,1724638255156,-500.0,0.00010999,2]
[335950831,1724638255165,-500.0,0.00010999,2]
[335950832,1724638255175,-500.0,0.00010999,2]
[335950833,1724638255185,-500.0,0.00010999,2]
[335950834,1724638255194,-500.0,0.00010999,2]
[335950835,1724638255203,-500.0,0.00010999,2]
[335950836,1724638255212,-623.99040645,0.00010999,2]
[335950837,1724638255221,-510.30650251,0.00010999,2]
[335950838,1724638255230,-151.0,0.00010999,2]
[335950839,1724638255239,-151.0,0.00010999,2]
[335950840,1724638255249,-265.462404,0.00010999,2]
[335950841,1724638255258,-151.893335,0.00010999,2]
[335950842,1724638255267,-151.0,0.00010999,2]
[335950843,1724638255277,-151.0,0.00010999,2]
[335950844,1724638255286,-151.0,0.00010999,2]
[335950845,1724638255295,-151.0,0.00010999,2]
[335950846,1724638255304,-195.700917,0.00010999,2]
[335950847,1724638255313,-500.0,0.00010999,2]
[335950848,1724638255323,-500.0,0.00010999,2]
[335950849,1724638255332,-500.0,0.00010999,2]
[335950850,1724638255341,-500.0,0.00010999,2]
[335950851,1724638255350,-500.0,0.00010999,2]
[335950852,1724638255359,-500.0,0.00010999,2]
[335950853,1724638255369,-500.0,0.00010999,2]
[335950854,1724638255378,-500.0,0.00010999,2]
[335950855,1724638255387,-179.89100449,0.00010999,2]
[335950856,1724638255396,-450.18714321,0.00010999,2]
[335950857,1724638255406,-500.0,0.00010999,2]
[335950858,1724638255415,-500.0,0.00010999,2]
[335950859,1724638255424,-500.0,0.00010999,2]
[335950860,1724638255434,-500.0,0.00010999,2]
[335950861,1724638255443,-400.39047727,0.00010999,2]
[335950862,1724638255453,-909.55,0.00010999,2]
[335950863,1724638255462,-909.55,0.00010999,2]
[335950864,1724638255471,-909.55,0.00010999,2]
[335950865,1724638255479,-909.55,0.00010999,2]
[335950866,1724638255489,-909.55,0.00010999,2]
[335950867,1724638255498,-909.55,0.00010999,2]
[335950868,1724638255507,-909.55,0.00010999,2]
[335950869,1724638255516,-909.55,0.00010999,2]
[335950870,1724638255525,-909.55,0.00010999,2]
[335950871,1724638255535,-909.55,0.00010999,2]
[335950872,1724638255544,-909.55,0.00010999,2]
[335950873,1724638255553,-909.55,0.00010999,2]
[335950874,1724638255562,-909.7764041,0.00010999,2]
[335950875,1724638255572,-500.0,0.00010999,2]
[335950876,1724638255581,-500.0,0.00010999,2]
[335950877,1724638255590,-500.0,0.00010999,2]
[335950878,1724638255599,-500.0,0.00010999,2]
[335950879,1724638255608,-369.32256186,0.00010999,2]
[335950880,1724638255617,-500.0,0.00010999,2]
[335950881,1724638255627,-500.0,0.00010999,2]
[335950882,1724638255636,-500.0,0.00010999,2]
[335950883,1724638255645,-185.738555,0.00010999,2]
[335950884,1724638255654,-500.0,0.00010999,2]
[335950885,1724638255663,-500.0,0.00010999,2]
[335950886,1724638255672,-500.0,0.00010999,2]
[335950887,1724638255687,-500.0,0.00010999,2]
[335950888,1724638255696,-500.0,0.00010999,2]
[335950889,1724638255705,-500.0,0.00010999,2]
[335950890,1724638255714,-404.1348099,0.00010999,2]
[335950891,1724638255723,-185.738555,0.00010999,2]
[335950892,1724638255732,-185.738555,0.00010999,2]
[335950893,1724638255741,-185.738555,0.00010999,2]
[335950894,1724638255751,-185.738555,0.00010999,2]
[335950895,1724638255760,-185.738555,0.00010999,2]
[335950896,1724638255769,-185.738555,0.00010999,2]
[335950897,1724638255778,-185.738555,0.00010999,2]
[335950898,1724638255787,-158.973311,0.00010999,2]
[335950899,1724638255796,-167.032712,0.00010999,2]
[335950900,1724638255805,-167.032712,0.00010999,2]
[335950901,1724638255814,-167.032712,0.00010999,2]
[335950902,1724638255823,-167.032712,0.00010999,2]
[335950903,1724638255833,-167.032712,0.00010999,2]
[335950904,1724638255843,-167.032712,0.00010999,2]
[335950905,1724638255852,-167.032712,0.00010999,2]
[335950906,1724638255861,-167.032712,0.00010999,2]
[335950907,1724638255871,-167.032712,0.00010999,2]
[335950908,1724638255880,-5800.0,0.00010999,2]
[335950909,1724638255893,-151.0,0.00010999,2]
[335950910,1724638255903,-151.0,0.00010999,2]
[335950911,1724638256024,-151.0,0.00010999,2]
[335950912,1724638256036,-151.210936,0.00010999,2]
[335950913,1724638256045,-500.0,0.00010999,2]
[335950914,1724638256055,-500.0,0.00010999,2]
[335950915,1724638256064,-500.0,0.00010999,2]
[335950916,1724638256073,-629.2806957,0.00010999,2]
[335950917,1724638256083,-151.0,0.00010999,2]
[335950918,1724638256092,-151.0,0.00010999,2]
[335950919,1724638256102,-222.176605,0.00010999,2]
[335950920,1724638256111,-1186.27,0.00010999,2]
[335950921,1724638256120,-1186.27,0.00010999,2]
[335950922,1724638256130,-1186.27,0.00010999,2]
[335950923,1724638256139,-1186.27,0.00010999,2]
[335950924,1724638256149,-1186.27,0.00010999,2]
[335950925,1724638256158,-1186.27,0.00010999,2]
[335950926,1724638256167,-1186.27,0.00010999,2]
[335950927,1724638256176,-1186.27,0.00010999,2]
[335950928,1724638256185,-1186.27,0.00010999,2]
[335950929,1724638256194,-1186.27,0.00010999,2]
[335950930,1724638256203,-151.0,0.00010999,2]
[335950931,1724638256213,-1186.27,0.00010999,2]
[335950932,1724638256222,-191.984374,0.00010999,2]
[335950933,1724638256232,-1186.48397491,0.00010999,2]
[335950934,1724638256241,-254.218486,0.00010999,2]
[335950935,1724638256251,-536.16,0.00010999,2]
[335950936,1724638256259,-536.16,0.00010999,2]
[335950937,1724638256269,-536.16,0.00010999,2]
[335950938,1724638256279,-536.16,0.00010999,2]
[335950939,1724638256288,-536.16,0.00010999,2]
[335950940,1724638256297,-536.16,0.00010999,2]
[335950941,1724638256307,-536.16,0.00010999,2]
[335950942,1724638256316,-536.16,0.00010999,2]
[335950943,1724638256325,-536.16,0.00010999,2]
[335950944,1724638256334,-536.16,0.00010999,2]
[335950945,1724638256343,-536.16,0.00010999,2]
[335950946,1724638256353,-536.3427061,0.00010999,2]
[335950947,1724638256363,-16483.57,0.00010999,2]
[335950948,1724638256372,-16483.57,0.00010999,2]
[335950949,1724638256381,-151.0,0.00010999,2]
[335950950,1724638256390,-16483.57,0.00010999,2]
[335950951,1724638256399,-638.38,0.00010999,2]
[335950952,1724638256408,-638.38,0.00010999,2]
[335950953,1724638256418,-151.0,0.00010999,2]
[335950954,1724638256429,-16483.57,0.00010999,2]
[335950955,1724638256439,-638.38,0.00010999,2]
[335950956,1724638256449,-151.0,0.00010999,2]
[335950957,1724638256458,-638.38,0.00010999,2]
[335950958,1724638256467,-7433.71374893,0.00010999,2]
[335950967,1724638361955,463.38,0.0001,2]
[335950969,1724638427918,7584.67251845,0.0001,2]
[335950970,1724638476709,699.5982,0.0001,2]
[335950972,1724638481430,250.0,9.955e-05,2]
[335950973,1724638483017,617.51,8.219e-05,2]
[335950974,1724638496178,485.11777697,0.0001,2]
[335950975,1724638496438,162.86951245,0.0001,2]
[335950976,1724638507946,1051.32949098,0.0001,2]
[335950979,1724638551968,170.91427852,0.0001,2]
[335950980,1724638554569,173.27,9.945e-05,2]
[335950982,1724638567290,1050.0,0.0001,2]
[335950984,1724638603044,888.0,0.0001,6]
[335950986,1724638605917,7587.23359003,0.0001,2]
[335950990,1724638697940,7587.23359003,0.0001,2]
[335950992,1724638802938,6437.03838126,0.0001,2]
[335950993,1724638803914,6409.4060955,9.506e-05,2]
[335951006,1724638869213,473.22,9.946e-05,2]
[335951010,1724638918939,7584.67251845,9.506e-05,2]
[335951011,1724638938681,1000.0,9.957e-05,2]
[335951013,1724639039259,250.0,9.926e-05,2]
[335951014,1724639039891,458.9,9.926e-05,2]
[335951016,1724639098964,7585.99489144,9.926e-05,2]
[335951017,1724639110102,60497.0,0.0001,2]
[335951025,1724639198962,7587.23359003,0.0001,2]
[335951028,1724639276934,5422.84969544,0.0001,2]
[335951029,1724639280860,618.71,8.219e-05,2]
[335951031,1724639301201,886.586035,9.976e-05,2]
[335951033,1724639304959,7587.23359003,8.219e-05,2]
[335951034,1724639313813,3977.40878158,0.00010009,2]
[335951049,1724639352465,7583.51749426,9.962e-05,2]
[335951061,1724639401826,1721.32001306,0.0001,2]
[335951080,1724639432545,-168.32,0.00010096,2]
[335951081,1724639432555,-349.35,0.000101,2]
[335951082,1724639432571,-3065.28778418,0.000101,2]
[335951084,1724639432587,-2700.67525417,0.000101,2]
[335951086,1724639432596,-1721.32001306,0.00010184,2]
[335951087,1724639432605,-1721.32001306,0.00010368,2]
[335951089,1724639432615,-618.71,0.00010468,2]
[335951090,1724639432624,-263.03620549,0.00010471,2]
[335951091,1724639432634,-300.0,0.00010499,2]
[335951092,1724639432642,-11503.0,0.000105,3]
[335951093,1724639432651,-694.8976,0.000106,2]
[335951094,1724639432660,-260.2733,0.00010694,2]
[335951095,1724639432670,-168.1012,0.00010696,2]
[335951096,1724639432679,-499.99,0.00010696,2]
[335951098,1724639432688,-150.0,0.00010699,2]
[335951099,1724639432699,-6008.0145,0.000107,2]
[335951100,1724639432708,-1004.0,0.000107,2]
[335951101,1724639432718,-421.62,0.000107,2]
[335951102,1724639432727,-791.05,0.000107,2]
[335951103,1724639432736,-421.62,0.000107,2]
[335951104,1724639432745,-791.05,0.000107,2]
[335951105,1724639432755,-791.05,0.000107,2]
[335951106,1724639432764,-14272.52077421,0.0001078,2]
[335951107,1724639432773,-743.4683,0.00010794,2]
[335951108,1724639432782,-66197.02186102,0.00010794,2]
[335951109,1724639432791,-500.0,0.00010794,2]
[335951110,1724639432800,-756.14,0.00010794,2]
[335951111,1724639432809,-906.39,0.00010794,2]
[335951112,1724639432818,-500.0,0.00010794,2]
[335951113,1724639432827,-500.0,0.00010794,2]
[335951114,1724639432836,-500.0,0.00010794,2]
[335951115,1724639432846,-500.0,0.00010794,2]
[335951116,1724639432855,-625.5,0.00010794,2]
[335951117,1724639432864,-500.0,0.00010794,2]
[335951118,1724639432874,-500.0,0.00010794,2]
[335951119,1724639432883,-1479.31,0.00010794,2]
[335951120,1724639432892,-500.0,0.00010794,2]
[335951121,1724639432901,-500.0,0.00010794,2]
[335951122,1724639432910,-171.98615325,0.00010794,2]
[335951123,1724639432919,-500.0,0.00010794,2]
[335951124,1724639432929,-500.0,0.00010794,2]
[335951125,1724639432938,-3143.89,0.00010794,2]
[335951126,1724639432947,-500.0,0.00010794,2]
[335951127,1724639432956,-500.0,0.00010794,2]
[335951128,1724639432966,-1367.09,0.00010794,2]
[335951129,1724639432976,-785.81,0.00010794,2]
[335951130,1724639432985,-500.0,0.00010794,2]
[335951131,1724639432994,-1216.31,0.00010794,2]
[335951132,1724639433004,-936.74,0.00010794,2]
[335951133,1724639433014,-500.0,0.00010794,2]
[335951134,1724639433023,-970.97,0.00010794,2]
[335951135,1724639433032,-500.0,0.00010794,2]
[335951136,1724639433042,-500.0,0.00010794,2]
[335951137,1724639433051,-500.0,0.00010794,2]
[335951138,1724639433060,-1117.4,0.00010794,2]
[335951139,1724639433069,-505.77,0.00010794,2]
[335951140,1724639433078,-2172.03,0.00010794,2]
[335951141,1724639433087,-500.0,0.00010794,2]
[335951142,1724639433096,-526.49,0.00010794,2]
[335951143,1724639433105,-1869.48,0.00010794,2]
[335951144,1724639433114,-876.44,0.00010794,2]
[335951145,1724639433124,-3946.38,0.00010794,2]
[335951146,1724639433133,-1421.29,0.00010794,2]
[335951147,1724639433142,-500.0,0.00010794,2]
[335951148,1724639433153,-500.0,0.00010794,2]
[335951149,1724639433164,-2207.05,0.00010794,2]
[335951150,1724639433173,-500.0,0.00010794,2]
[335951151,1724639433182,-500.0,0.00010795,2]
[335951152,1724639433192,-825.399,0.00010795,2]
[335951153,1724639433202,-39199.5697,0.00010795,2]
[335951154,1724639433211,-98058.3555,0.00010795,2]
[335951155,1724639433221,-2146.94259288,0.00010799,2]
[335951156,1724639433230,-800.2358121,0.000108,2]
[335951157,1724639433240,-1003.0,0.000108,2]
[335951158,1724639433254,-791.05,0.000108,2]
[335951159,1724639433264,-791.05,0.000108,2]
[335951160,1724639433275,-791.05,0.000108,2]
[335951161,1724639433286,-421.59,0.000108,2]
[335951162,1724639433296,-791.05,0.000108,2]
[335951163,1724639433306,-421.59,0.000108,2]
[335951164,1724639433316,-791.05,0.000108,2]
[335951165,1724639433326,-421.59,0.000108,2]
[335951166,1724639433336,-897.05,0.000108,2]
[335951167,1724639433345,-419.22222074,0.000108,2]
[335951168,1724639433358,-2.36777926,0.000108,2]
[335951169,1724639433367,-764.61,0.00010852,2]
[335951170,1724639433376,-150.99,0.00010852,2]
[335951171,1724639433386,-1229.76,0.00010888,2]
[335951172,1724639433395,-1426.34501,0.0001089,2]
[335951173,1724639433405,-243.84652434,0.0001089,2]
[335951174,1724639433417,-2085.89763444,0.0001089,2]
[335951175,1724639433427,-500.0,0.00010893,2]
[335951176,1724639433438,-661.92,0.00010893,2]
[335951177,1724639433449,-699.99,0.00010893,2]
[335951178,1724639433459,-500.0,0.00010893,2]
[335951179,1724639433469,-500.0,0.00010893,2]
[335951180,1724639433479,-500.0,0.00010893,2]
[335951181,1724639433488,-815.81,0.00010893,2]
[335951182,1724639433498,-500.0,0.00010893,2]
[335951183,1724639433508,-500.0,0.00010893,2]
[335951184,1724639433518,-500.0,0.00010893,2]
[335951185,1724639433528,-488.08371861,0.00010893,2]
[335951186,1724639433538,-500.0,0.00010893,2]
[335951187,1724639433548,-3799.70660883,0.00010893,2]
[335951188,1724639433559,-2071.89339117,0.00010893,2]
[335951189,1724639433569,-500.0,0.00010893,2]
[335951190,1724639433579,-500.0,0.00010893,2]
[335951191,1724639433588,-500.0,0.00010893,2]
[335951192,1724639433598,-543.21,0.00010893,2]
[335951193,1724639433609,-500.0,0.00010893,2]
[335951194,1724639433618,-500.0,0.00010893,2]
[335951195,1724639433628,-500.0,0.00010893,2]
[335951196,1724639433637,-500.0,0.00010893,2]
[335951197,1724639433647,-500.0,0.00010893,2]
[335951198,1724639433656,-500.0,0.00010894,2]
[335951199,1724639433667,-558.240649,0.00010894,2]
[335951200,1724639433677,-468.15485898,0.00010894,2]
[335951201,1724639433686,-150.27229398,0.00010894,2]
[335951202,1724639433696,-519.10697053,0.00010894,2]
[335951203,1724639433706,-500.0,0.00010894,2]
[335951204,1724639433716,-113.11984416,0.00010894,2]
[335951205,1724639433728,-386.88015584,0.00010894,2]
[335951206,1724639433737,-303.94438796,0.00010894,2]
[335951207,1724639433749,-196.05561204,0.00010894,2]
[335951208,1724639433759,-500.0,0.00010894,2]
[335951209,1724639433769,-512.07460727,0.00010894,2]
[335951210,1724639433778,-500.0,0.00010894,2]
[335951211,1724639433787,-526.22473436,0.00010894,2]
[335951212,1724639433796,-377.9694586,0.00010894,2]
[335951213,1724639433808,-246.48283361,0.00010894,2]
[335951214,1724639433817,-538.00464575,0.00010894,2]
[335951215,1724639433827,-281.98496292,0.00010894,2]
[335951216,1724639433838,-237.64567803,0.00010894,2]
[335951217,1724639433847,-515.66273358,0.00010894,2]
[335951218,1724639433856,-533.59,0.00010894,2]
[335951219,1724639433865,-186.07158839,0.00010894,2]
[335951223,1724639438314,-382.05,0.00010065,2]
[335951224,1724639438326,-261.88456289,0.00010894,2]
[335951225,1724639438338,-65.77145235,0.00010894,2]
[335951226,1724639438347,-221.57581644,0.00010894,2]
[335951227,1724639438358,-278.42418356,0.00010894,2]
[335951228,1724639438368,-500.0,0.00010894,2]
[335951229,1724639438377,-519.15057993,0.00010895,2]
[335951230,1724639438386,-512.38248453,0.00010895,2]
[335951231,1724639438395,-500.0,0.00010895,2]
[335951232,1724639438404,-510.46611048,0.00010895,2]
[335951233,1724639438414,-500.0,0.00010895,2]
[335951234,1724639438424,-510.38901599,0.00010895,2]
[335951235,1724639438433,-510.39334953,0.00010895,2]
[335951236,1724639438443,-500.0,0.00010895,2]
[335951237,1724639438453,-544.33567353,0.00010895,2]
[335951238,1724639438462,-500.0,0.00010895,2]
[335951239,1724639438471,-500.0,0.00010895,2]
[335951240,1724639438480,-504.81514814,0.00010895,2]
[335951241,1724639438489,-509.05683629,0.00010895,2]
[335951242,1724639438499,-500.0,0.00010895,2]
[335951243,1724639438508,-500.0,0.00010895,2]
[335951244,1724639438517,-447.14453157,0.00010895,2]
[335951245,1724639438526,-537.30627499,0.00010895,2]
[335951246,1724639438535,-500.0,0.00010895,2]
[335951247,1724639438544,-522.1323456,0.00010895,2]
[335951248,1724639438553,-512.55579965,0.00010895,2]
[335951249,1724639438562,-500.0,0.00010895,2]
[335951250,1724639438572,-219.04506708,0.00010895,2]
[335951251,1724639438581,-538.30681846,0.00010895,2]
[335951252,1724639438590,-500.0,0.00010895,2]
[335951253,1724639438599,-517.96591852,0.00010895,2]
[335951254,1724639438609,-513.51757775,0.00010895,2]
[335951255,1724639438618,-176.15315401,0.00010899,2]
[335951256,1724639438627,-576.37881248,0.00010899,2]
[335951257,1724639438637,-576.37881244,0.00010899,2]
[335951258,1724639438646,-576.37881244,0.00010899,2]
[335951259,1724639438656,-576.37881244,0.00010899,2]
[335951260,1724639438665,-576.37881244,0.00010899,2]
[335951261,1724639438674,-576.37881244,0.00010899,2]
[335951262,1724639438683,-576.37881244,0.00010899,2]
[335951263,1724639438693,-576.37881244,0.00010899,2]
[335951264,1724639438702,-576.37881244,0.00010899,2]
[335951265,1724639438711,-433.44643514,0.00010899,2]
[335951266,1724639438720,-2135.589,0.000109,2]
[335951268,1724639438729,-767.802,0.000109,2]
[335951270,1724639438738,-624.553,0.000109,2]
[335951272,1724639438747,-4396.31063149,0.000109,2]
[335951274,1724639438758,-1109.20886868,0.000109,2]
[335951319,1724639439162,-996.82632063,0.000109,2]
[335951321,1724639439174,-606.5543099,0.000109,2]
[335951326,1724639439213,-6345.0998693,0.000109,2]
[335951328,1724639439222,-508.276,0.000109,2]
[335951343,1724639439355,-5000.0,0.000109,2]
[335951345,1724639439364,-208.39953393,0.000109,4]
[335951347,1724639439373,-576.37881244,0.000109,2]
[335951349,1724639439383,-1819.0,0.000109,2]
[335951351,1724639439392,-1856.62190109,0.000109,2]
[335951353,1724639439401,-500.0,0.00010912,2]
[335951355,1724639439410,-402.76154356,0.00010949,2]
[335951357,1724639439419,-154.47,0.00010959,2]
[335951359,1724639439428,-500.0,0.00010973,2]
[335951361,1724639439437,-155.0,0.00010979,2]
[335951363,1724639439446,-500.0,0.00010991,2]
[335951365,1724639439455,-500.0,0.00010991,2]
[335951367,1724639439464,-500.0,0.00010991,2]
[335951368,1724639439474,-500.0,0.00010991,2]
[335951371,1724639439483,-500.0,0.00010991,2]
[335951373,1724639439492,-529.09332834,0.00010991,2]
[335951375,1724639439501,-150.0,0.00010991,2]
[335951377,1724639439510,-500.0,0.00010991,2]
[335951378,1724639439520,-590.61,0.00010991,2]
[335951380,1724639439529,-543.17056365,0.00010991,2]
[335951382,1724639439539,-562.73528509,0.00010991,2]
[335951384,1724639439548,-780.36,0.00010991,2]
[335951386,1724639439557,-500.0,0.00010991,2]
[335951388,1724639439566,-500.0,0.00010991,2]
[335951390,1724639439575,-500.0,0.00010991,2]
[335951392,1724639439584,-500.0,0.00010991,2]
[335951394,1724639439594,-1297.67,0.00010991,2]
[335951396,1724639439603,-500.0,0.00010991,2]
[335951398,1724639439613,-500.0,0.00010991,2]
[335951400,1724639439622,-1377.39,0.00010991,2]
[335951402,1724639439631,-508.22644434,0.00010991,2]
[335951404,1724639439640,-500.0,0.00010991,2]
[335951406,1724639439650,-500.0,0.00010991,2]
[335951408,1724639439659,-500.0,0.00010991,2]
[335951410,1724639439668,-500.0,0.00010991,2]
[335951412,1724639439678,-500.0,0.00010991,2]
[335951414,1724639439687,-500.0,0.00010991,2]